fUSD/lending_fUSD_20260515
["ID","MTS","AMOUNT","RATE_DAILY","PERIOD"]
[422315178,1778817032000,-500.0,0.00013174,2]
[422315175,1778817032000,-500.0,0.00013174,2]
[422315171,1778817032000,-500.0,0.00013174,2]
[422315173,1778817032000,-500.0,0.00013174,2]
[422315174,1778817032000,-500.0,0.00013174,2]
[422315168,1778817032000,-500.0,0.00013174,2]
[422315163,1778817032000,-500.0,0.00013174,2]
[422315169,1778817032000,-500.0,0.00013174,2]
[422315159,1778817032000,-500.0,0.00013174,2]
[422315164,1778817032000,-500.0,0.00013174,2]
[422315165,1778817032000,-500.0,0.00013174,2]
[422315162,1778817032000,-500.0,0.00013174,2]
[422315161,1778817032000,-500.0,0.00013174,2]
[422315158,1778817032000,-150.0,0.00013173,2]
[422315182,1778817032000,-500.0,0.00013174,2]
[422315156,1778817032000,-244.28611341,0.000131,2]
[422315148,1778817032000,-322.59321388,0.00013075,2]
[422315160,1778817032000,-500.0,0.00013174,2]
[422315180,1778817032000,-500.0,0.00013174,2]
[422315143,1778817032000,-160.33,0.00012912,2]
[422315141,1778817032000,-500.0,0.00012,2]
[422315142,1778817032000,-814.076,0.00012912,2]
[422315144,1778817032000,-160.0,0.00012981,2]
[422315145,1778817032000,-1200.0,0.00013074,2]
[422315147,1778817032000,-500.91157275,0.00013075,2]
[422315146,1778817032000,-802.30379748,0.00013075,2]
[422315149,1778817032000,-462.19315992,0.00013075,2]
[422315151,1778817032000,-2500.0,0.00013075,2]
[422315150,1778817032000,-2911.99825597,0.00013075,2]
[422315152,1778817032000,-8970.54541396,0.00013075,2]
[422315153,1778817032000,-3307.16045395,0.00013075,2]
[422315154,1778817032000,-375.1883772,0.00013075,2]
[422315155,1778817032000,-328320.44225489,0.00013075,2]
[422315157,1778817032000,-1504.42755468,0.00013152,2]
[422315184,1778817032000,-500.0,0.00013174,2]
[422315202,1778817032000,-500.0,0.00013174,2]
[422315186,1778817032000,-500.0,0.00013174,2]
[422315211,1778817032000,-500.0,0.00013174,2]
[422315220,1778817032000,-500.0,0.00013174,2]
[422315221,1778817032000,-500.0,0.00013174,2]
[422315223,1778817032000,-500.0,0.00013174,2]
[422315222,1778817032000,-500.0,0.00013174,2]
[422315219,1778817032000,-500.0,0.00013174,2]
[422315224,1778817032000,-300.0,0.00013174,2]
[422315215,1778817032000,-500.0,0.00013174,2]
[422315214,1778817032000,-500.0,0.00013174,2]
[422315218,1778817032000,-500.0,0.00013174,2]
[422315216,1778817032000,-500.0,0.00013174,2]
[422315225,1778817032000,-500.0,0.00013174,2]
[422315227,1778817032000,-500.0,0.00013174,2]
[422315228,1778817032000,-500.0,0.00013174,2]
[422315190,1778817032000,-500.0,0.00013174,2]
[422315210,1778817032000,-500.0,0.00013174,2]
[422315209,1778817032000,-500.0,0.00013174,2]
[422315217,1778817032000,-650.0,0.00013174,2]
[422315207,1778817032000,-500.0,0.00013174,2]
[422315208,1778817032000,-500.0,0.00013174,2]
[422315188,1778817032000,-500.0,0.00013174,2]
[422315194,1778817032000,-500.0,0.00013174,2]
[422315199,1778817032000,-500.0,0.00013174,2]
[422315196,1778817032000,-500.0,0.00013174,2]
[422315198,1778817032000,-500.0,0.00013174,2]
[422315200,1778817032000,-500.0,0.00013174,2]
[422315192,1778817032000,-517.9866286,0.00013174,2]
[422315203,1778817032000,-500.0,0.00013174,2]
[422315226,1778817032000,-500.0,0.00013174,2]
[422315204,1778817032000,-500.0,0.00013174,2]
[422315205,1778817032000,-500.0,0.00013174,2]
[422315212,1778817032000,-500.0,0.00013174,2]
[422315206,1778817032000,-500.0,0.00013174,2]
[422315201,1778817032000,-500.0,0.00013174,2]
[422315213,1778817032000,-500.0,0.00013174,2]
[422315269,1778817033000,-1000.0,0.0001499,2]
[422315266,1778817033000,-214.997284,0.00013337,2]
[422315263,1778817033000,-265.91782473,0.000132,2]
[422315264,1778817033000,-512.77554531,0.00013218,2]
[422315267,1778817033000,-1000.0,0.000136,2]
[422315268,1778817033000,-250.0,0.00014,2]
[422315262,1778817033000,-150.99,0.00013175,2]
[422315261,1778817033000,-2000.0,0.00013175,2]
[422315265,1778817033000,-208.38824723,0.00013328,2]
[422315259,1778817033000,-500.0,0.00013174,2]
[422315260,1778817033000,-9999.99,0.00013174,2]
[422315271,1778817033000,-300.0,0.00014999,2]
[422315280,1778817033000,-300.0,0.00016,2]
[422315281,1778817033000,-8186.46,0.00016116,2]
[422315270,1778817033000,-300.0,0.00014999,2]
[422315274,1778817033000,-244.28611338,0.00015536,2]
[422315275,1778817033000,-300.0,0.00015954,2]
[422315277,1778817033000,-666.0,0.00015954,2]
[422315278,1778817033000,-300.0,0.00015954,2]
[422315279,1778817033000,-166.66,0.00015996,2]
[422315273,1778817033000,-300.0,0.00014999,2]
[422315276,1778817033000,-300.0,0.00015954,2]
[422315287,1778817033000,-500.0,0.000165,2]
[422315285,1778817033000,-186.0,0.00016438,2]
[422315258,1778817033000,-500.0,0.00013174,2]
[422315282,1778817033000,-166.66,0.00016333,2]
[422315256,1778817033000,-500.0,0.00013174,2]
[422315236,1778817033000,-500.0,0.00013174,2]
[422315255,1778817033000,-500.0,0.00013174,2]
[422315229,1778817033000,-595.7495546,0.00013174,2]
[422315230,1778817033000,-500.0,0.00013174,2]
[422315231,1778817033000,-500.0,0.00013174,2]
[422315235,1778817033000,-500.0,0.00013174,2]
[422315233,1778817033000,-500.0,0.00013174,2]
[422315234,1778817033000,-500.0,0.00013174,2]
[422315232,1778817033000,-500.0,0.00013174,2]
[422315237,1778817033000,-500.0,0.00013174,2]
[422315239,1778817033000,-500.0,0.00013174,2]
[422315238,1778817033000,-500.0,0.00013174,2]
[422315283,1778817033000,-1236.75784357,0.00016438,2]
[422315247,1778817033000,-500.0,0.00013174,2]
[422315257,1778817033000,-500.0,0.00013174,2]
[422315240,1778817033000,-500.0,0.00013174,2]
[422315242,1778817033000,-500.0,0.00013174,2]
[422315243,1778817033000,-500.0,0.00013174,2]
[422315246,1778817033000,-500.0,0.00013174,2]
[422315244,1778817033000,-500.0,0.00013174,2]
[422315245,1778817033000,-500.0,0.00013174,2]
[422315250,1778817033000,-500.0,0.00013174,2]
[422315248,1778817033000,-574.18048563,0.00013174,2]
[422315253,1778817033000,-500.0,0.00013174,2]
[422315251,1778817033000,-500.0,0.00013174,2]
[422315252,1778817033000,-500.0,0.00013174,2]
[422315254,1778817033000,-500.0,0.00013174,2]
[422315249,1778817033000,-500.0,0.00013174,2]
[422315241,1778817033000,-500.0,0.00013174,2]
[422315288,1778817033000,-151.0,0.000165,2]
[422315272,1778817033000,-666.0,0.00014999,2]
[422315293,1778817033000,-500.0,0.000165,2]
[422315317,1778817033000,-500.0,0.000165,2]
[422315321,1778817033000,-500.0,0.000165,2]
[422315323,1778817033000,-500.0,0.000165,2]
[422315320,1778817033000,-500.0,0.000165,2]
[422315327,1778817033000,-500.0,0.000165,2]
[422315329,1778817033000,-151.0,0.000165,2]
[422315328,1778817033000,-151.0,0.000165,2]
[422315325,1778817033000,-500.0,0.000165,2]
[422315322,1778817033000,-500.0,0.000165,2]
[422315324,1778817033000,-500.0,0.000165,2]
[422315326,1778817033000,-500.0,0.000165,2]
[422315331,1778817033000,-151.0,0.000165,2]
[422315315,1778817033000,-500.0,0.000165,2]
[422315336,1778817033000,-151.0,0.000165,2]
[422315335,1778817033000,-151.0,0.000165,2]
[422315332,1778817033000,-151.0,0.000165,2]
[422315333,1778817033000,-151.0,0.000165,2]
[422315340,1778817033000,-151.0,0.000165,2]
[422315341,1778817033000,-151.0,0.000165,2]
[422315339,1778817033000,-151.0,0.000165,2]
[422315338,1778817033000,-151.0,0.000165,2]
[422315337,1778817033000,-1865.36488657,0.000165,2]
[422315342,1778817033000,-151.0,0.000165,2]
[422315344,1778817033000,-151.0,0.000165,2]
[422315343,1778817033000,-151.0,0.000165,2]
[422315286,1778817033000,-151.0,0.000165,2]
[422315334,1778817033000,-151.0,0.000165,2]
[422315313,1778817033000,-500.0,0.000165,2]
[422315330,1778817033000,-151.0,0.000165,2]
[422315311,1778817033000,-500.0,0.000165,2]
[422315314,1778817033000,-500.0,0.000165,2]
[422315284,1778817033000,-2258.3,0.00016438,2]
[422315292,1778817033000,-151.0,0.000165,2]
[422315294,1778817033000,-151.0,0.000165,2]
[422315289,1778817033000,-500.0,0.000165,2]
[422315291,1778817033000,-500.0,0.000165,2]
[422315307,1778817033000,-151.0,0.000165,2]
[422315306,1778817033000,-151.0,0.000165,2]
[422315297,1778817033000,-500.0,0.000165,2]
[422315296,1778817033000,-151.0,0.000165,2]
[422315295,1778817033000,-500.0,0.000165,2]
[422315298,1778817033000,-151.0,0.000165,2]
[422315303,1778817033000,-500.0,0.000165,2]
[422315290,1778817033000,-151.0,0.000165,2]
[422315316,1778817033000,-500.0,0.000165,2]
[422315318,1778817033000,-500.0,0.000165,2]
[422315308,1778817033000,-500.0,0.000165,2]
[422315319,1778817033000,-500.0,0.000165,2]
[422315312,1778817033000,-151.0,0.000165,2]
[422315299,1778817033000,-500.0,0.000165,2]
[422315309,1778817033000,-151.0,0.000165,2]
[422315310,1778817033000,-500.0,0.000165,2]
[422315304,1778817033000,-151.0,0.000165,2]
[422315301,1778817033000,-500.0,0.000165,2]
[422315300,1778817033000,-151.0,0.000165,2]
[422315305,1778817033000,-500.0,0.000165,2]
[422315302,1778817033000,-151.0,0.000165,2]
[422315384,1778817034000,-215.94512088,0.00018391,3]
[422315380,1778817034000,-235.39597937,0.00018144,2]
[422315379,1778817034000,-2080.17592889,0.00018144,2]
[422315389,1778817034000,-2157.14243826,0.00018692,2]
[422315382,1778817034000,-500.0,0.00018179,2]
[422315374,1778817034000,-1504.42755463,0.00017777,2]
[422315388,1778817034000,-240.44,0.00018488,2]
[422315383,1778817034000,-165.15888529,0.000182,2]
[422315378,1778817034000,-350.0,0.00018,2]
[422315377,1778817034000,-165.15888529,0.00018,2]
[422315387,1778817034000,-2258.3,0.0001841,2]
[422315373,1778817034000,-166.66,0.0001768,2]
[422315381,1778817034000,-500.0,0.00018179,2]
[422315386,1778817034000,-165.15888529,0.000184,2]
[422315400,1778817034000,-492.36493864,0.00019178,2]
[422315391,1778817034000,-500.0,0.00018725,2]
[422315401,1778817034000,-1472.86,0.00019178,2]
[422315390,1778817034000,-500.0,0.00018725,2]
[422315393,1778817034000,-164.16086875,0.00018771,2]
[422315392,1778817034000,-193.96341392,0.00018758,3]
[422315394,1778817034000,-500.0,0.00018981,7]
[422315396,1778817034000,-300.0,0.00018999,2]
[422315395,1778817034000,-162.38459575,0.00018981,7]
[422315399,1778817034000,-171.98170696,0.00019126,3]
[422315397,1778817034000,-300.0,0.00018999,2]
[422315402,1778817034000,-300.0,0.00019233,2]
[422315406,1778817034000,-2236.95670848,0.0001924,2]
[422315385,1778817034000,-215.95,0.00018391,3]
[422315372,1778817034000,-500.0,0.0001765,2]
[422315347,1778817034000,-151.0,0.000165,2]
[422315368,1778817034000,-2005.9555727,0.00017596,2]
[422315404,1778817034000,-300.0,0.00019237,2]
[422315348,1778817034000,-151.0,0.000165,2]
[422315346,1778817034000,-151.0,0.000165,2]
[422315352,1778817034000,-166.66,0.00016669,2]
[422315345,1778817034000,-151.0,0.000165,2]
[422315349,1778817034000,-151.0,0.000165,2]
[422315351,1778817034000,-200.0,0.0001659,2]
[422315350,1778817034000,-356.19,0.0001659,2]
[422315353,1778817034000,-150.0,0.00016683,2]
[422315358,1778817034000,-617.21,0.00017067,2]
[422315359,1778817034000,-512.77554527,0.00017168,2]
[422315355,1778817034000,-166.66,0.00017006,2]
[422315357,1778817034000,-151.0,0.00017048,2]
[422315354,1778817034000,-156.62,0.00016712,2]
[422315361,1778817034000,-166.66,0.00017343,2]
[422315360,1778817034000,-186.0,0.0001726,2]
[422315356,1778817034000,-1934.38338737,0.00017048,2]
[422315362,1778817034000,-300.0,0.00017413,2]
[422315363,1778817034000,-690.56488704,0.00017413,2]
[422315375,1778817034000,-290.84013389,0.00017808,2]
[422315365,1778817034000,-2000.0,0.00017471,2]
[422315376,1778817034000,-244.28611338,0.00017972,2]
[422315367,1778817034000,-171.08,0.00017507,2]
[422315364,1778817034000,-300.0,0.00017413,2]
[422315369,1778817034000,-151.0,0.00017596,2]
[422315366,1778817034000,-243.66,0.00017486,2]
[422315371,1778817034000,-500.0,0.0001765,2]
[422315370,1778817034000,-181.41,0.00017603,2]
[422315405,1778817034000,-300.0,0.00019237,2]
[422315398,1778817034000,-500.0,0.00019042,2]
[422315413,1778817034000,-200.0,0.000199,7]
[422315439,1778817034000,-1000.0,0.0002,2]
[422315450,1778817034000,-1493.91,0.00020145,2]
[422315451,1778817034000,-500.0,0.00020188,7]
[422315449,1778817034000,-258.0,0.0002,2]
[422315441,1778817034000,-400.0,0.0002,2]
[422315443,1778817034000,-249.0,0.0002,2]
[422315440,1778817034000,-134253.14,0.0002,2]
[422315442,1778817034000,-649.0,0.0002,2]
[422315447,1778817034000,-358.0,0.0002,2]
[422315444,1778817034000,-584.0,0.0002,2]
[422315446,1778817034000,-3787.0,0.0002,2]
[422315445,1778817034000,-2931.0,0.0002,2]
[422315448,1778817034000,-153.68370957,0.0002,20]
[422315453,1778817034000,-18683.6785,0.00020188,2]
[422315464,1778817034000,-649.0,0.00021,2]
[422315463,1778817034000,-397.0,0.00021,2]
[422315452,1778817034000,-603.97432624,0.00020188,7]
[422315455,1778817034000,-2405.55389864,0.00020336,2]
[422315454,1778817034000,-164.16086875,0.00020254,2]
[422315456,1778817034000,-2258.3,0.00020381,2]
[422315459,1778817034000,-21801.77,0.00020548,2]
[422315460,1778817034000,-545.74814157,0.00020548,2]
[422315458,1778817034000,-500.0,0.00020461,2]
[422315461,1778817034000,-2494.55939289,0.00020884,2]
[422315457,1778817034000,-244.28611338,0.00020407,2]
[422315462,1778817034000,-273.0,0.00021,2]
[422315403,1778817034000,-300.0,0.00019233,2]
[422315438,1778817034000,-8775.0,0.0002,2]
[422315435,1778817034000,-273.0,0.0002,2]
[422315466,1778817034000,-584.0,0.00021,2]
[422315434,1778817034000,-580.82365375,0.00019999,2]
[422315407,1778817034000,-500.0,0.00019286,2]
[422315410,1778817034000,-2319.72410669,0.00019788,2]
[422315411,1778817034000,-240.44,0.00019858,2]
[422315412,1778817034000,-500.0,0.00019865,2]
[422315465,1778817034000,-249.0,0.00021,2]
[422315409,1778817034000,-2000.0,0.00019654,2]
[422315408,1778817034000,-173.04164456,0.00019635,2]
[422315415,1778817034000,-200.0,0.000199,2]
[422315436,1778817034000,-397.0,0.0002,2]
[422315426,1778817034000,-500.0,0.00019999,2]
[422315423,1778817034000,-500.0,0.00019999,2]
[422315416,1778817034000,-200.0,0.000199,2]
[422315420,1778817034000,-200.0,0.000199,2]
[422315414,1778817034000,-200.0,0.000199,3]
[422315425,1778817034000,-500.0,0.00019999,2]
[422315422,1778817034000,-500.0,0.00019999,2]
[422315419,1778817034000,-200.0,0.000199,2]
[422315433,1778817034000,-500.0,0.00019999,2]
[422315437,1778817034000,-1980.0,0.0002,2]
[422315427,1778817034000,-500.0,0.00019999,2]
[422315431,1778817034000,-193.45719492,0.00019999,2]
[422315429,1778817034000,-353.01996356,0.00019999,2]
[422315428,1778817034000,-500.0,0.00019999,2]
[422315421,1778817034000,-398.94,0.000199,2]
[422315418,1778817034000,-200.0,0.000199,2]
[422315417,1778817034000,-200.0,0.000199,2]
[422315424,1778817034000,-500.0,0.00019999,2]
[422315430,1778817034000,-500.0,0.00019999,2]
[422315432,1778817034000,-500.0,0.00019999,2]
[422315504,1778817035000,-160.95068889,0.00021575,2]
[422315507,1778817035000,-282.71673119,0.00021575,2]
[422315505,1778817035000,-262.90206542,0.00021575,2]
[422315506,1778817035000,-272.62944185,0.00021575,2]
[422315511,1778817035000,-621.78829552,0.00021575,2]
[422315498,1778817035000,-235.75327194,0.00021575,2]
[422315503,1778817035000,-187.78006525,0.00021575,2]
[422315502,1778817035000,-253.52176029,0.00021575,2]
[422315500,1778817035000,-244.476143,0.00021575,2]
[422315497,1778817035000,-152.0,0.00021575,2]
[422315501,1778817035000,-152.0,0.00021575,2]
[422315508,1778817035000,-293.17725025,0.00021575,2]
[422315518,1778817035000,-1000.0,0.00021575,2]
[422315510,1778817035000,-191.8188462,0.00021575,2]
[422315523,1778817035000,-187.78006525,0.00021575,2]
[422315521,1778817035000,-1000.0,0.00021575,2]
[422315517,1778817035000,-1000.0,0.00021575,2]
[422315515,1778817035000,-279.9045709,0.00021575,2]
[422315513,1778817035000,-1000.0,0.00021575,2]
[422315522,1778817035000,-1000.0,0.00021575,2]
[422315519,1778817035000,-1000.0,0.00021575,2]
[422315520,1778817035000,-1000.0,0.00021575,2]
[422315514,1778817035000,-1000.0,0.00021575,2]
[422315516,1778817035000,-1000.0,0.00021575,2]
[422315512,1778817035000,-1000.0,0.00021575,2]
[422315493,1778817035000,-152.0,0.00021575,2]
[422315509,1778817035000,-304.02480851,0.00021575,2]
[422315494,1778817035000,-219.23011724,0.00021575,2]
[422315480,1778817035000,-646.65982734,0.00021575,2]
[422315495,1778817035000,-152.0,0.00021575,2]
[422315524,1778817035000,-151.0,0.0002163,2]
[422315476,1778817035000,-741.95,0.00021273,2]
[422315469,1778817035000,-358.0,0.00021,2]
[422315470,1778817035000,-525.11493027,0.00021,2]
[422315472,1778817035000,-356.19,0.00021028,2]
[422315473,1778817035000,-500.0,0.00021075,2]
[422315471,1778817035000,-258.0,0.00021,2]
[422315474,1778817035000,-512.77554527,0.00021119,2]
[422315467,1778817035000,-2931.0,0.00021,2]
[422315468,1778817035000,-3787.0,0.00021,2]
[422315475,1778817035000,-561.54,0.00021273,2]
[422315477,1778817035000,-3561.49,0.00021273,2]
[422315478,1778817035000,-2586.85809042,0.00021432,2]
[422315479,1778817035000,-578.20924308,0.00021575,2]
[422315482,1778817035000,-200.0,0.00021575,2]
[422315481,1778817035000,-187.78006525,0.00021575,2]
[422315483,1778817035000,-1280.88388878,0.00021575,2]
[422315486,1778817035000,-187.78006525,0.00021575,2]
[422315484,1778817035000,-151.0,0.00021575,2]
[422315485,1778817035000,-743.50770149,0.00021575,2]
[422315487,1778817035000,-152.0,0.00021575,2]
[422315488,1778817035000,-152.0,0.00021575,2]
[422315489,1778817035000,-152.0,0.00021575,2]
[422315499,1778817035000,-152.0,0.00021575,2]
[422315491,1778817035000,-152.0,0.00021575,2]
[422315490,1778817035000,-211.40802048,0.00021575,2]
[422315492,1778817035000,-174.61919141,0.00021575,2]
[422315496,1778817035000,-227.34163157,0.00021575,2]
[422315527,1778817035000,-164.16086875,0.00021736,2]
[422315535,1778817035000,-225.71274503,0.00021918,2]
[422315532,1778817035000,-500.0,0.00021862,2]
[422315571,1778817035000,-194.72792766,0.00022123,2]
[422315570,1778817035000,-151.0,0.0002207,2]
[422315559,1778817035000,-195.89,0.00022,2]
[422315561,1778817035000,-649.0,0.00022,2]
[422315563,1778817035000,-584.0,0.00022,2]
[422315564,1778817035000,-2931.0,0.00022,2]
[422315567,1778817035000,-258.0,0.00022,2]
[422315562,1778817035000,-249.0,0.00022,2]
[422315566,1778817035000,-358.0,0.00022,2]
[422315565,1778817035000,-3787.0,0.00022,2]
[422315568,1778817035000,-194.40890239,0.00022,3]
[422315569,1778817035000,-151.0,0.00022015,2]
[422315560,1778817035000,-450.0,0.00022,2]
[422315573,1778817035000,-1328.27659266,0.00022123,2]
[422315574,1778817035000,-771.01748645,0.00022123,2]
[422315584,1778817035000,-151.0,0.0002229,2]
[422315572,1778817035000,-200.0,0.00022123,2]
[422315580,1778817035000,-151.0,0.00022125,2]
[422315577,1778817035000,-644.79446246,0.00022123,2]
[422315525,1778817035000,-151.0,0.00021685,2]
[422315581,1778817035000,-151.0,0.0002218,2]
[422315578,1778817035000,-290.26104003,0.00022123,2]
[422315575,1778817035000,-194.72792766,0.00022123,2]
[422315582,1778817035000,-373.0,0.000222,3]
[422315579,1778817035000,-194.72792766,0.00022123,2]
[422315585,1778817035000,-2000.0,0.00022311,2]
[422315583,1778817035000,-151.0,0.00022235,2]
[422315558,1778817035000,-397.0,0.00022,2]
[422315576,1778817035000,-181.08010149,0.00022123,2]
[422315556,1778817035000,-2682.57183977,0.0002198,2]
[422315555,1778817035000,-151.0,0.0002196,2]
[422315526,1778817035000,-500.0,0.00021707,2]
[422315528,1778817035000,-151.0,0.0002174,2]
[422315533,1778817035000,-151.0,0.00021905,2]
[422315530,1778817035000,-2000.0,0.00021838,2]
[422315531,1778817035000,-151.0,0.0002185,2]
[422315534,1778817035000,-5000.0,0.00021918,2]
[422315537,1778817035000,-800.0,0.00021918,2]
[422315536,1778817035000,-800.0,0.00021918,2]
[422315547,1778817035000,-800.0,0.00021918,2]
[422315544,1778817035000,-800.0,0.00021918,2]
[422315538,1778817035000,-800.0,0.00021918,2]
[422315543,1778817035000,-800.0,0.00021918,2]
[422315529,1778817035000,-151.0,0.00021795,2]
[422315540,1778817035000,-800.0,0.00021918,2]
[422315542,1778817035000,-800.0,0.00021918,2]
[422315554,1778817035000,-1236.75784357,0.00021918,2]
[422315549,1778817035000,-800.0,0.00021918,2]
[422315557,1778817035000,-273.0,0.00022,2]
[422315553,1778817035000,-166.39593959,0.00021918,3]
[422315550,1778817035000,-800.0,0.00021918,2]
[422315552,1778817035000,-150.0,0.00021918,2]
[422315548,1778817035000,-800.0,0.00021918,2]
[422315541,1778817035000,-800.0,0.00021918,2]
[422315545,1778817035000,-800.0,0.00021918,2]
[422315539,1778817035000,-800.0,0.00021918,2]
[422315546,1778817035000,-800.0,0.00021918,2]
[422315551,1778817035000,-800.0,0.00021918,2]
[422315609,1778817036000,-625.0,0.00022423,2]
[422315608,1778817036000,-1354.0,0.00022423,2]
[422315613,1778817036000,-1223.0,0.00022423,2]
[422315624,1778817036000,-201.93286099,0.00022671,2]
[422315615,1778817036000,-275.0,0.00022423,2]
[422315614,1778817036000,-200.0,0.00022423,2]
[422315623,1778817036000,-500.0,0.0002257,2]
[422315612,1778817036000,-150.159,0.00022423,2]
[422315616,1778817036000,-200.0,0.00022423,2]
[422315622,1778817036000,-2781.82699784,0.00022528,2]
[422315619,1778817036000,-6053.0,0.00022423,2]
[422315618,1778817036000,-933.445,0.00022423,2]
[422315620,1778817036000,-2037.91,0.00022466,2]
[422315621,1778817036000,-753.3,0.00022466,2]
[422315625,1778817036000,-200.0,0.00022671,2]
[422315628,1778817036000,-201.93286099,0.00022671,2]
[422315629,1778817036000,-187.78006525,0.00022671,2]
[422315626,1778817036000,-1377.42282659,0.00022671,2]
[422315611,1778817036000,-1270.0,0.00022423,2]
[422315617,1778817036000,-219.0,0.00022423,2]
[422315607,1778817036000,-1504.42755463,0.00022401,2]
[422315589,1778817036000,-2000.0,0.00022311,2]
[422315605,1778817036000,-2258.3,0.00022353,2]
[422315586,1778817036000,-2000.0,0.00022311,2]
[422315591,1778817036000,-2000.0,0.00022311,2]
[422315592,1778817036000,-2000.0,0.00022311,2]
[422315597,1778817036000,-2000.0,0.00022311,2]
[422315587,1778817036000,-2000.0,0.00022311,2]
[422315588,1778817036000,-2000.0,0.00022311,2]
[422315590,1778817036000,-2000.0,0.00022311,2]
[422315596,1778817036000,-2000.0,0.00022311,2]
[422315593,1778817036000,-2000.0,0.00022311,2]
[422315594,1778817036000,-2000.0,0.00022311,2]
[422315595,1778817036000,-2000.0,0.00022311,2]
[422315601,1778817036000,-2000.0,0.00022311,2]
[422315599,1778817036000,-2000.0,0.00022311,2]
[422315598,1778817036000,-2000.0,0.00022311,2]
[422315600,1778817036000,-2000.0,0.00022311,2]
[422315602,1778817036000,-2000.0,0.00022311,2]
[422315606,1778817036000,-500.0,0.00022358,2]
[422315603,1778817036000,-2000.0,0.00022311,2]
[422315627,1778817036000,-799.54513345,0.00022671,2]
[422315604,1778817036000,-2000.0,0.00022311,2]
[422315630,1778817036000,-668.65185757,0.00022671,2]
[422315610,1778817036000,-3542.0,0.00022423,2]
[422315635,1778817036000,-5530.0,0.000228,5]
[422315654,1778817036000,-154.0,0.00023,30]
[422315655,1778817036000,-154.0,0.00023,30]
[422315651,1778817036000,-154.0,0.00023,30]
[422315653,1778817036000,-154.0,0.00023,30]
[422315659,1778817036000,-154.0,0.00023,30]
[422315658,1778817036000,-154.0,0.00023,30]
[422315664,1778817036000,-154.0,0.00023,30]
[422315663,1778817036000,-154.0,0.00023,30]
[422315674,1778817036000,-154.0,0.00023,30]
[422315675,1778817036000,-162.0,0.00023,30]
[422315666,1778817036000,-154.0,0.00023,30]
[422315665,1778817036000,-154.0,0.00023,30]
[422315668,1778817036000,-154.0,0.00023,30]
[422315673,1778817036000,-154.0,0.00023,30]
[422315670,1778817036000,-154.0,0.00023,30]
[422315672,1778817036000,-154.0,0.00023,30]
[422315671,1778817036000,-154.0,0.00023,30]
[422315669,1778817036000,-154.0,0.00023,30]
[422315634,1778817036000,-840.228,0.0002278,7]
[422315657,1778817036000,-154.0,0.00023,30]
[422315656,1778817036000,-154.0,0.00023,30]
[422315667,1778817036000,-154.0,0.00023,30]
[422315661,1778817036000,-154.0,0.00023,30]
[422315652,1778817036000,-154.0,0.00023,30]
[422315632,1778817036000,-201.93286099,0.00022671,2]